bitfinex/quotes_ETHUSD_20230110
["timestamp","ask_amount","ask_price","bid_price","bid_amount"]
[1673385921331,1.55717423,1341.1,1340.9,18.86727332]
[1673385921547,15.63774229,1341.2,1340.9,18.86727332]
[1673385921724,15.57174229,1341.2,1340.9,11.40978332]
[1673385924385,15.57174229,1341.2,1340.9,18.86745332]
[1673385926539,15.57174229,1341.2,1340.9,11.40978332]
[1673385926860,2.5,1341.1,1340.9,7.51730845]
[1673385927521,2.5,1341.1,1340.9,10.29334576]
[1673385928226,2.5,1341.1,1340.9,17.75101576]
[1673385928895,2.5,1341.1,1340.9,7.51730845]
[1673385929287,2.5,1341.1,1340.9,14.97497845]
[1673385930536,2.5,1341.1,1340.9,7.51730845]
[1673385930910,2.5,1341.1,1340.9,14.97497845]
[1673385932983,2.49794127,1341.1,1340.9,17.75101288]
[1673385933595,20.09183641,1341.2,1340.9,10.29334288]
[1673385933850,4.50918364,1341.1,1340.9,10.29134288]
[1673385934001,2.5,1341.1,1340.9,17.75101288]
[1673385935484,2.5,1341.1,1340.9,14.97497845]
[1673385936259,2.5,1341.1,1340.9,7.51730845]
[1673385936788,2.5,1341.1,1340.9,10.29333669]
[1673385937373,2.5,1341.1,1340.9,14.97497845]
[1673385937583,2.5,1341.1,1340.9,10.29333669]
[1673385937826,4.59567331,1341.1,1340.9,10.29333669]
[1673385937993,4.59567331,1341.1,1340.9,17.75100669]
[1673385938417,4.59767331,1341.1,1340.9,17.74900669]
[1673385938678,4.59567331,1341.1,1340.9,17.75100669]
[1673385939711,4.59567331,1341.1,1340.9,10.29333669]
[1673385939922,2.09767331,1341.1,1340.9,7.51530845]
[1673385940247,2.09567331,1341.1,1340.9,7.51730845]
[1673385940809,4.59567331,1341.1,1340.9,7.51730845]
[1673385941113,2.09567331,1341.1,1340.9,17.75100669]
[1673385941334,20.65133641,1341.2,1340.9,14.97497845]
[1673385941507,17.80424229,1341.2,1340.9,17.75100669]
[1673385942483,20.58533641,1341.2,1340.9,17.75100669]
[1673385942802,15.30424229,1341.2,1340.9,17.75100669]
[1673385943031,15.30424229,1341.2,1340.9,18.86745621]
[1673385943913,15.30424229,1341.2,1341.0,1.85058847]
[1673385944130,15.30424229,1341.2,1341.0,9.30764847]
[1673385944376,15.30424229,1341.2,1341.0,7.51687845]
[1673385944592,7.24954229,1341.2,1341.0,7.51687845]
[1673385945186,6.69004229,1341.2,1341.0,7.51687845]
[1673385946028,5.01704229,1341.2,1341.0,7.51687845]
[1673385953998,5.01704229,1341.2,1341.0,7.51443029]
[1673385954444,3.83462848,1341.2,1341.0,7.51443029]
[1673385955257,0.066,1341.3,1341.0,26.23910617]
[1673385955476,11.11319412,1341.4,1341.1,5.66084876]
[1673385955792,11.11319412,1341.4,1341.2,7.456]
[1673385955793,12.12976064,1341.4,1341.2,7.456]
[1673385956044,12.12976064,1341.4,1341.2,7.51581845]
[1673385956204,12.12976064,1341.4,1341.2,0.05981845]
[1673385956205,11.57036064,1341.4,1341.2,0.05981845]
[1673385956415,11.57036064,1341.4,1341.1,25.20493669]
[1673385956661,11.57036064,1341.4,1341.1,30.06233274]
[1673385957412,11.57036064,1341.4,1341.1,30.06181336]
[1673385957788,11.57036064,1341.4,1341.1,22.60532336]
[1673385958177,11.57036064,1341.4,1341.1,22.60532544]
[1673385958753,11.57036064,1341.4,1341.1,19.8298145]
[1673385959142,11.57036064,1341.4,1341.1,12.3734745]
[1673385959369,21.80636476,1341.4,1341.1,12.3734745]
[1673385959581,21.80636476,1341.4,1341.1,7.51607845]
[1673385959839,35.80636476,1341.4,1341.1,7.51607845]
[1673385960512,35.80636476,1341.4,1341.1,0.05981845]
[1673385960727,35.80636476,1341.4,1341.0,38.32744042]
[1673385960978,35.80636476,1341.4,1341.0,42.1378763]
[1673385961171,35.80636476,1341.4,1341.0,44.60089734]
[1673385961594,33.02527064,1341.4,1341.0,44.60089734]
[1673385962209,11.57036064,1341.4,1341.0,52.05801734]
[1673385962422,11.57036064,1341.4,1341.0,53.17446686]
[1673385962646,11.57036064,1341.4,1341.0,52.05801734]
[1673385963680,11.57036064,1341.4,1341.0,33.33341146]
[1673385963681,24.1630639,1341.4,1341.0,33.33341146]
[1673385963893,24.1630639,1341.4,1341.0,30.8703768]
[1673385964118,38.1630639,1341.4,1341.0,28.09476845]
[1673385964405,38.1630639,1341.4,1341.0,33.87888845]
[1673385964611,30.7081339,1341.4,1341.0,44.1116168]
[1673385964872,30.7081339,1341.4,1341.0,41.33600845]
[1673385965180,38.1630239,1341.4,1341.0,41.33600845]
[1673385965989,38.1630239,1341.4,1341.0,33.87888845]
[1673385966201,38.1630239,1341.4,1341.0,36.65448384]
[1673385967497,38.19999174,1341.4,1341.0,36.65448384]
[1673385967671,45.65488174,1341.4,1341.0,29.19736384]
[1673385967895,4.56548817,1341.3,1341.0,36.65448384]
[1673385968074,33.12821848,1341.4,1341.0,29.19736384]
[1673385968429,25.60732848,1341.4,1341.0,41.33600845]
[1673385968600,25.60732848,1341.4,1341.0,33.87888845]
[1673385968812,25.60732848,1341.4,1341.0,36.65450684]
[1673385969766,25.60732848,1341.4,1341.0,41.58139224]
[1673385969973,25.60732848,1341.4,1341.0,44.7895235]
[1673385970286,25.60732848,1341.4,1341.1,1.85033072]
[1673385970516,25.60732848,1341.4,1341.2,7.456]
[1673385970861,17.83462848,1341.4,1341.2,7.51581845]
[1673385973331,17.83462848,1341.4,1341.2,0.05981845]
[1673385973545,20.59257133,1341.4,1341.1,22.42874845]
[1673385977236,20.59257133,1341.4,1341.1,14.97243845]
[1673385978832,20.59257133,1341.4,1341.1,17.74791814]
[1673385980310,20.59257133,1341.4,1341.1,10.29160814]
[1673385980520,20.59257133,1341.4,1341.1,7.51612845]
[1673385981026,20.59257133,1341.4,1341.1,14.97268845]
[1673385981238,20.59257133,1341.4,1341.1,17.74816814]
[1673385981451,20.59257133,1341.4,1341.1,10.29160814]
[1673385981665,20.59257133,1341.4,1341.1,7.51612845]
[1673385982606,28.04753133,1341.4,1341.1,10.29160814]
[1673385984135,28.04753133,1341.4,1341.1,7.51612845]
[1673385986512,28.04753133,1341.4,1341.1,22.42924845]
[1673385986513,20.59257133,1341.4,1341.1,22.42924845]
[1673385986730,17.83462848,1341.4,1341.1,22.90619957]
[1673385987048,3.83462848,1341.4,1341.1,22.90619957]
[1673385987575,3.83662848,1341.4,1341.1,22.90419957]
[1673385987788,3.83462848,1341.4,1341.1,22.90619957]
[1673385988716,6.6157226,1341.4,1341.1,14.97268845]
[1673385988938,6.6157226,1341.4,1341.1,17.74822979]
[1673385989258,6.6157226,1341.4,1341.1,14.97268845]
[1673385990387,20.6157226,1341.4,1341.1,14.97268845]
[1673385990607,20.6157226,1341.4,1341.1,7.51612845]
[1673385991691,20.6157226,1341.4,1341.1,10.29169171]
[1673385993476,20.6157226,1341.4,1341.1,25.20481171]
[1673385993477,14.03696784,1341.4,1341.1,25.20481171]
[1673385994002,16.81806196,1341.4,1341.1,17.74825171]
[1673385994912,16.81806196,1341.4,1341.1,18.86470123]
[1673385997068,2.81806196,1341.4,1341.1,18.86470123]
[1673385997375,0.03696784,1341.4,1341.2,9.30606119]
[1673385997556,0.03696784,1341.4,1341.2,7.51558845]
[1673386000091,0.03696784,1341.4,1341.2,22.42758845]
[1673386000535,0.03696784,1341.4,1341.2,22.4241026]
[1673386001139,0.03696784,1341.4,1341.3,2.5]
[1673386001496,0.03696784,1341.4,1341.3,14.9109]
[1673386001688,0.03696784,1341.4,1341.3,14.97071845]
[1673386001899,2.78109412,1341.5,1341.3,14.97071845]
[1673386002112,9.62413881,1341.5,1341.3,14.97071845]
[1673386004970,9.62413881,1341.5,1341.3,7.51526845]
[1673386006332,9.62413881,1341.5,1341.3,0.05981845]
[1673386006544,9.62413881,1341.5,1341.2,22.42675845]
[1673386008704,9.62413881,1341.5,1341.2,7.51527845]
[1673386010014,9.62613881,1341.5,1341.2,7.51327845]
[1673386010233,9.62413881,1341.5,1341.2,7.51527845]
[1673386010597,0.96241388,1341.4,1341.2,7.51527845]
[1673386010919,9.69013881,1341.5,1341.2,7.51527845]
[1673386011242,9.62413881,1341.5,1341.2,7.51527845]
[1673386011799,9.62413881,1341.5,1341.2,14.97127845]
[1673386013062,9.62413881,1341.5,1341.2,7.51527845]
[1673386013480,9.62413881,1341.5,1341.2,14.97127845]
[1673386014220,9.62413881,1341.5,1341.2,7.51527845]
[1673386014925,0.96241388,1341.4,1341.2,7.51527845]
[1673386015122,9.69013881,1341.5,1341.2,7.51527845]
[1673386015334,9.62413881,1341.5,1341.2,14.97127845]
[1673386015586,9.62413881,1341.5,1341.2,22.42727845]
[1673386016222,6.57875476,1341.5,1341.2,14.97127845]
[1673386019669,2.78109412,1341.4,1341.2,14.97127845]
[1673386020000,25.14630412,1341.4,1341.2,0.05981845]
[1673386020313,17.69087412,1341.4,1341.0,20.08116797]
[1673386020530,13.8853658,1341.4,1341.0,30.31358609]
[1673386020895,15.5583658,1341.4,1341.0,22.85682609]
[1673386021167,15.5583658,1341.4,1341.0,30.31378609]
[1673386021365,23.0132558,1341.4,1341.0,30.31378609]
[1673386021537,15.5583658,1341.4,1341.0,30.31378609]
[1673386022177,8.1034758,1341.4,1341.1,1.85043919]
[1673386022379,8.1034758,1341.4,1341.0,34.99524797]
[1673386022601,15.5583858,1341.4,1341.0,37.77090609]
[1673386022806,8.1034758,1341.4,1341.0,45.22802609]
[1673386023034,15.59535364,1341.4,1341.0,27.53812797]
[1673386023270,8.14044364,1341.4,1341.0,34.99524797]
[1673386023426,8.14044364,1341.4,1341.0,37.77091536]
[1673386024173,8.14044364,1341.4,1341.0,37.76805893]
[1673386024499,8.14044364,1341.4,1341.0,41.57849481]
[1673386024677,8.14044364,1341.4,1341.0,34.99239154]
[1673386024895,8.14044364,1341.4,1341.0,36.65163381]
[1673386025461,15.59555364,1341.4,1341.0,36.65163381]
[1673386025681,8.14044364,1341.4,1341.0,41.57851921]
[1673386025983,15.59555364,1341.4,1341.0,31.34570742]
[1673386026224,8.14044364,1341.4,1341.0,34.12137634]
[1673386026390,8.14044364,1341.4,1341.0,40.46204682]
[1673386026580,8.14044364,1341.4,1341.0,37.6863779]
[1673386026790,8.14044364,1341.4,1341.0,33.87594202]
[1673386027046,8.14044364,1341.4,1341.0,36.65162593]
[1673386027354,8.14044364,1341.4,1341.0,44.10874593]
[1673386027573,23.05054364,1341.4,1341.0,26.41882202]
[1673386027747,15.59549364,1341.4,1341.0,26.41882202]
[1673386027936,2.30505436,1341.3,1341.0,36.65165336]
[1673386028308,4.55706196,1341.4,1341.0,36.65165336]
[1673386028612,4.55706196,1341.4,1341.1,1.85031573]
[1673386028613,1.70996784,1341.4,1341.1,1.85031573]
[1673386028821,9.16494784,1341.4,1341.1,1.85031573]
[1673386029139,1.70996784,1341.4,1341.1,12.08251707]
[1673386029311,1.70996784,1341.4,1341.1,10.29201979]
[1673386029523,0.17099678,1341.3,1341.1,10.29201979]
[1673386029744,1.70996784,1341.4,1341.1,17.74845979]
[1673386029930,9.16495784,1341.4,1341.1,2.83552979]
[1673386030143,9.16495784,1341.4,1341.1,2.77571134]
[1673386030392,1.70996784,1341.4,1341.1,12.08253282]
[1673386030555,1.70996784,1341.4,1341.1,2.83552979]
[1673386030773,9.16499784,1341.4,1341.1,2.77571134]
[1673386030998,9.16499784,1341.4,1341.0,37.76748288]
[1673386031229,10.5638741,1341.4,1341.1,1.8503517]
[1673386031441,18.0189041,1341.4,1341.1,4.62606304]
[1673386031715,18.0189041,1341.4,1341.0,20.07831154]
[1673386031716,10.5638741,1341.4,1341.0,37.76793288]
[1673386031942,10.5638741,1341.4,1341.1,1.8503538]
[1673386032168,10.5638741,1341.4,1341.1,4.62606514]
[1673386032390,3.1088441,1341.4,1341.1,7.4565]
[1673386032583,5.1088441,1341.4,1341.1,10.29202979]
[1673386032793,0.51088441,1341.3,1341.1,7.51631845]
[1673386033020,5.1748441,1341.4,1341.1,7.51631845]
[1673386033321,12.5640541,1341.4,1341.1,2.83552979]
[1673386033531,18.0192641,1341.4,1341.0,30.31086288]
[1673386033722,18.0192641,1341.4,1341.1,1.85035481]
[1673386033723,18.0189441,1341.4,1341.1,1.85035481]
[1673386033939,20.80003822,1341.4,1341.1,1.85035481]
[1673386034388,2.08000382,1341.3,1341.1,1.85035481]
[1673386034548,7.45559,1341.3,1341.0,20.07831154]
[1673386034769,13.41082822,1341.4,1341.1,1.85038563]
[1673386035126,17.14248886,1341.4,1341.0,45.22516288]
[1673386035299,4.21424889,1341.3,1341.0,27.53532154]
[1673386035508,4.21424889,1341.3,1341.0,30.31093789]
[1673386035509,1.71424889,1341.3,1341.0,30.31093789]
[1673386036056,5.51190953,1341.3,1341.0,30.31093789]
[1673386036267,5.51190953,1341.3,1341.0,34.99244154]
[1673386036472,5.51190953,1341.3,1341.1,1.85035981]
[1673386036688,0.55119095,1341.2,1341.1,1.85035981]
[1673386036899,5.57790953,1341.3,1341.2,0.55119094]
[1673386037069,5.51190953,1341.3,1341.2,0.55119094]
[1673386040579,5.50911198,1341.3,1341.2,0.55119094]
[1673386043832,8.00911198,1341.3,1341.2,0.55119094]
[1673386044478,5.50911198,1341.3,1341.2,0.55119094]
[1673386044699,5.50911198,1341.3,1341.0,42.44901154]
[1673386045005,3.79766064,1341.3,1341.0,42.44901154]
[1673386045396,3.79766064,1341.3,1341.1,1.85041022]
[1673386045950,3.79766064,1341.3,1341.0,42.44901154]
[1673386046117,6.29766064,1341.3,1341.0,42.44901154]
[1673386046330,21.20862064,1341.3,1341.0,18.96186202]
[1673386046641,25.1249659,1341.3,1341.0,18.96186202]
[1673386046886,17.6694859,1341.3,1341.0,18.96186202]
[1673386047419,17.6694859,1341.3,1341.0,29.19462068]
[1673386047736,20.45058002,1341.3,1341.0,29.19462068]
[1673386048264,20.45058002,1341.3,1341.0,21.73759068]
[1673386048638,17.95058002,1341.3,1341.0,21.73759068]
[1673386048868,15.1694859,1341.3,1341.0,21.73759068]
[1673386049341,17.95058002,1341.3,1341.0,21.73759068]
[1673386049496,15.1694859,1341.3,1341.0,21.73759068]
[1673386049858,19.95058002,1341.3,1341.0,21.73759068]
[1673386050089,17.1694859,1341.3,1341.0,18.96186202]
[1673386050225,17.95058002,1341.3,1341.0,18.96186202]
[1673386050438,17.95058002,1341.3,1341.0,21.73759068]
[1673386050695,10.49510002,1341.3,1341.0,21.73759068]
[1673386050901,15.1695259,1341.3,1341.0,21.73759068]
[1673386051082,15.1695259,1341.3,1341.0,18.96186202]
[1673386051752,15.1715259,1341.3,1341.0,18.95986202]
[1673386051917,15.1695259,1341.3,1341.0,18.96186202]
[1673386052720,17.95062002,1341.3,1341.0,18.96186202]
[1673386053935,25.40614002,1341.3,1341.0,18.96186202]
[1673386054161,5.040614,1341.2,1341.0,18.96186202]
[1673386054385,2.5,1341.2,1341.0,18.96186202]
[1673386055006,2.502,1341.2,1341.0,18.95986202]
[1673386055229,2.5,1341.2,1341.0,18.96186202]
[1673386055851,32.92835002,1341.3,1341.0,18.96186202]
[1673386056057,32.86235002,1341.3,1341.0,18.96186202]
[1673386058028,32.86435002,1341.3,1341.0,18.95986202]
[1673386058276,32.86235002,1341.3,1341.0,18.96186202]
[1673386058495,5.786235,1341.2,1341.0,18.96186202]
[1673386058693,32.92835002,1341.3,1341.0,18.96186202]
[1673386058907,25.40848002,1341.3,1341.0,18.95986202]
[1673386059235,25.40648002,1341.3,1341.0,18.96186202]
[1673386059395,17.95062002,1341.3,1341.0,18.96186202]
[1673386060985,17.95062002,1341.3,1341.0,26.41895202]
[1673386061198,17.95062002,1341.3,1341.0,20.84784725]
[1673386061411,1.71493468,1341.2,1341.0,10.61496202]
[1673386061955,25.47230002,1341.3,1341.0,10.61496202]
[1673386062282,25.40630002,1341.3,1341.0,10.61496202]
[1673386063120,17.95062002,1341.3,1341.0,10.61496202]
[1673386063279,17.95062002,1341.3,1341.0,13.39075725]
[1673386063493,25.40629002,1341.3,1341.0,10.61496202]
[1673386063731,5.040629,1341.2,1341.0,10.61496202]
[1673386064904,12.496749,1341.2,1341.0,10.61496202]
[1673386065239,9.996749,1341.2,1341.0,10.61195448]
[1673386065927,2.540629,1341.2,1341.0,10.61195448]
[1673386067269,2.542629,1341.2,1341.0,10.60995448]
[1673386067480,2.540629,1341.2,1341.0,10.61195448]
[1673386071632,2.542629,1341.2,1341.0,10.60995448]
[1673386071941,2.540629,1341.2,1341.0,10.61195448]
[1673386079943,9.996639,1341.2,1341.0,10.61195448]
[1673386080531,2.0056639,1341.1,1341.0,0.05981845]
[1673386080745,9.996639,1341.2,1341.0,0.05981845]
[1673386080746,10.062639,1341.2,1341.0,1.85054299]
[1673386080954,5.040629,1341.2,1341.0,1.85054299]
[1673386081606,5.040629,1341.2,1340.9,19.17893079]
[1673386082249,5.32172312,1341.2,1341.0,1.85059521]
[1673386082646,2.540629,1341.2,1341.0,1.85059521]
[1673386088107,4.020629,1341.2,1341.0,1.85059521]
[1673386088372,2.520629,1341.2,1341.0,1.85059521]
[1673386093311,15.25785312,1341.2,1341.0,1.85059521]
[1673386093527,1.52578531,1341.1,1341.0,1.85059521]
[1673386093838,1.52578531,1341.1,1340.9,7.82921845]
[1673386093839,16.43890531,1341.1,1340.9,7.82921845]
[1673386093997,8.98234531,1341.1,1340.9,7.82921845]
[1673386095266,4.02578531,1341.1,1340.9,7.82921845]
[1673386096755,1.52578531,1341.1,1340.9,7.82921845]
[1673386097152,4.02578531,1341.1,1340.9,7.82921845]
[1673386097605,11.48239531,1341.1,1340.9,7.82921845]
[1673386098653,15.28005595,1341.1,1340.9,0.05981845]
[1673386098863,4.94590017,1341.0,1340.8,12.33136797]
[1673386099266,4.94590017,1341.0,1340.9,1.85071626]
[1673386099493,4.94590017,1341.0,1340.8,15.10719079]
[1673386099705,4.94590017,1341.0,1340.8,4.69869079]
[1673386099901,3.79766064,1341.0,1340.8,1.86304952]
[1673386100555,3.79766064,1341.0,1340.8,6.48957824]
[1673386100775,3.79766064,1341.0,1340.8,4.69869079]
[1673386100947,3.79766064,1341.0,1340.8,4.63887234]
[1673386102515,5.33596102,1341.0,1340.8,4.63887234]
[1673386103164,5.33596102,1341.0,1340.8,3.52242282]
[1673386103722,5.33596102,1341.0,1340.8,5.3731258]
[1673386103877,5.33596102,1341.0,1340.8,0.80641845]
[1673386104090,12.79314102,1341.0,1340.8,0.7466]
[1673386104314,5.07697474,1340.9,1340.8,0.7466]
[1673386104542,29.10798474,1340.9,1340.7,19.22261845]
[1673386104759,29.10798474,1340.9,1340.7,0.05981845]
[1673386104760,1.673,1340.8,1340.7,0.05981845]
[1673386105092,17.82875847,1340.8,1340.6,1.1764908]
[1673386105251,17.82875847,1340.8,1340.6,0.06004128]
[1673386106362,10.37052847,1340.8,1340.6,0.06004128]
[1673386106927,10.37252847,1340.8,1340.6,0.06004128]
[1673386107178,10.37052847,1340.8,1340.6,0.06004128]
[1673386107500,10.40749631,1340.8,1340.6,0.06004128]
[1673386108292,2.94926631,1340.8,1340.6,0.06004128]
[1673386109461,10.40755631,1340.8,1340.6,0.06004128]
[1673386109821,17.86584631,1340.8,1340.6,0.06004128]
[1673386110011,2.94926631,1340.8,1340.6,0.06004128]
[1673386110225,0.03696784,1340.8,1340.6,0.06004128]
[1673386110612,3.79766064,1340.7,1340.6,0.06004128]
[1673386110919,2.60296784,1340.8,1340.6,0.06004128]
[1673386111145,6.33462848,1340.8,1340.6,0.06004128]
[1673386111357,0.03696784,1340.8,1340.6,14.97870128]
[1673386111567,0.03696784,1340.8,1340.6,25.27410783]
[1673386112132,38.90170038,1341.0,1340.6,28.06355735]
[1673386112133,32.5194,1341.0,1340.6,28.06355735]
[1673386112345,3.79766064,1340.9,1340.6,31.86569535]
[1673386112494,3.79766064,1340.9,1340.7,3.18656954]
[1673386112861,3.79766064,1340.9,1340.8,7.45823]
[1673386113132,3.79766064,1340.9,1340.8,7.51804845]
[1673386113297,3.79766064,1340.9,1340.8,0.05981845]
[1673386113455,3.79766064,1340.9,1340.7,22.43532845]
[1673386113889,3.79766064,1340.9,1340.7,14.97681845]
[1673386114635,3.79766064,1340.9,1340.7,7.51831845]
[1673386118320,3.79766064,1340.9,1340.7,10.32457419]
[1673386118713,3.79766064,1340.9,1340.7,2.86607419]
[1673386118919,3.79766064,1340.9,1340.7,2.80625574]
[1673386119452,3.79766064,1340.9,1340.6,20.60405735]
[1673386119661,3.79766064,1340.9,1340.7,1.85081231]
[1673386120708,37.79993784,1341.0,1340.7,1.85081231]
[1673386120952,34.07416848,1341.0,1340.7,1.85081231]
[1673386121339,34.07416848,1341.0,1340.6,20.60383735]
[1673386121547,34.07416848,1341.0,1340.6,27.55908908]
[1673386121753,34.07416848,1341.0,1340.7,1.85083115]
[1673386124384,34.07416848,1341.0,1340.7,9.30961115]
[1673386124595,34.07416848,1341.0,1340.7,7.51859845]
[1673386125379,26.58006064,1341.0,1340.7,26.23043033]
[1673386125596,26.58006064,1341.0,1340.8,2.62304303]
[1673386125757,26.58006064,1341.0,1340.8,10.08106303]
[1673386125959,26.58006064,1341.0,1340.8,7.51783845]
[1673386126507,18.35726064,1341.0,1340.8,7.51783845]
[1673386127143,18.35726064,1341.0,1340.8,7.51797845]
[1673386128753,18.35726064,1341.0,1340.8,0.006]
[1673386128955,18.35726064,1341.0,1340.8,0.003]
[1673386129167,20.9452477,1341.0,1340.8,0.003]
[1673386130012,28.4023777,1341.0,1340.8,0.003]
[1673386130336,28.4023777,1341.0,1340.7,2.51859845]
[1673386136045,28.4023777,1341.0,1340.6,22.31750318]
[1673386136366,35.8595077,1341.0,1340.7,1.85083005]
[1673386136573,3.58595077,1340.9,1340.7,1.85083005]
[1673386136746,43.3829777,1341.0,1340.7,1.85083005]
[1673386136953,43.3169777,1341.0,1340.7,1.85083005]
[1673386137809,43.3169777,1341.0,1340.7,2.96727957]
[1673386138042,43.3169777,1341.0,1340.7,1.11644952]
[1673386138203,43.3169777,1341.0,1340.7,1.85083384]
[1673386138420,35.8595077,1341.0,1340.7,1.85083384]
[1673386139389,35.8595077,1341.0,1340.7,2.96728336]
[1673386143507,35.8595077,1341.0,1340.7,1.85083384]
[1673386143717,31.18347182,1341.0,1340.6,26.4289089]
[1673386143924,31.18347182,1341.0,1340.7,1.85092481]
[1673386144308,31.18347182,1341.0,1340.7,9.30970481]
[1673386144517,31.18347182,1341.0,1340.7,7.55778]
[1673386145721,20.9452477,1341.0,1340.7,7.55778]
[1673386147518,20.9452477,1341.0,1340.7,8.67422952]
[1673386147676,20.9452477,1341.0,1340.7,7.55778]
[1673386148750,28.4023877,1341.0,1340.7,7.55778]
[1673386149011,28.4023877,1341.0,1340.8,1.8508423]
[1673386149197,2.84023877,1340.9,1340.7,8.67422952]
[1673386149367,28.4683877,1341.0,1340.8,1.85085021]
[1673386149567,28.4023877,1341.0,1340.8,1.85085021]
[1673386149828,28.4023877,1341.0,1340.7,15.43648]
[1673386149829,31.18348182,1341.0,1340.7,15.43648]
[1673386150008,28.4023877,1341.0,1340.7,16.55292952]
[1673386150214,31.18348182,1341.0,1340.7,15.43648]
[1673386150570,31.18348182,1341.0,1340.7,16.55292952]
[1673386150776,31.18348182,1341.0,1340.7,15.43648]
[1673386150989,31.18348182,1341.0,1340.7,16.55292952]
[1673386151200,3.76643787,1340.9,1340.7,15.43648]
[1673386151518,3.76643787,1340.9,1340.7,7.9777]
[1673386151927,1.26643787,1340.9,1340.7,7.9777]
[1673386152833,1.26643787,1340.9,1340.7,15.43644]
[1673386153707,1.26643787,1340.9,1340.7,7.9777]
[1673386153708,8.72410787,1340.9,1340.7,7.9777]
[1673386153924,0.87241079,1340.8,1340.7,7.9777]
[1673386154163,0.87241079,1340.8,1340.7,9.82868402]
[1673386154460,0.87241079,1340.8,1340.7,1.94998402]
[1673386154779,0.87241079,1340.8,1340.7,1.85098402]
[1673386154948,1.26643787,1340.9,1340.7,1.85098402]
[1673386155297,3.76643787,1340.9,1340.7,1.85098402]
[1673386156665,3.76643787,1340.9,1340.6,11.5110189]
[1673386156829,3.76643787,1340.9,1340.6,8.7347708]
[1673386157042,3.76643787,1340.9,1340.6,7.61832128]
[1673386157286,0.37664379,1340.8,1340.6,7.61832128]
[1673386159222,3.76643787,1340.9,1340.6,7.61832128]
[1673386159763,6.54753199,1340.9,1340.6,7.61589946]
[1673386160334,1.26643787,1340.9,1340.6,7.61589946]
[1673386160976,3.26643787,1340.9,1340.6,7.61589946]
[1673386161304,1.26643787,1340.9,1340.6,7.61589946]
[1673386161933,6.54753199,1340.9,1340.6,0.15661946]
[1673386162152,0.6547532,1340.8,1340.6,0.05761946]
[1673386162351,6.61353199,1340.9,1340.6,0.05761946]
[1673386162557,12.01819263,1340.9,1340.6,7.51676946]
[1673386162771,12.01819263,1340.9,1340.6,7.61576946]
[1673386163449,9.51819263,1340.9,1340.6,7.61576946]
[1673386163973,9.51819263,1340.9,1340.6,15.07510946]
[1673386164129,0.95181926,1340.8,1340.6,15.07510946]
[1673386164344,0.95181926,1340.8,1340.6,17.85166498]
[1673386165081,0.95181926,1340.8,1340.6,15.07510946]
[1673386169325,0.95181926,1340.8,1340.6,17.85164139]
[1673386169907,0.95181926,1340.8,1340.6,15.07510946]
[1673386170121,0.95181926,1340.8,1340.6,17.85164902]
[1673386170330,0.97781927,1340.8,1340.6,17.85164902]
[1673386170528,0.97781927,1340.8,1340.6,15.07510946]
[1673386171166,1.01178193,1340.7,1340.6,7.61576946]
[1673386171424,3.54381927,1340.8,1340.6,0.15661946]
[1673386171740,3.47781927,1340.8,1340.6,0.05761946]
[1673386174124,7.27547991,1340.8,1340.6,0.05761946]
[1673386175060,4.77547991,1340.8,1340.6,0.05761946]
[1673386175267,7.27547991,1340.8,1340.6,0.05761946]
[1673386175478,4.77547991,1340.8,1340.6,0.05761946]
[1673386175720,7.27547991,1340.8,1340.6,0.05761946]
[1673386175918,7.27547991,1340.8,1340.6,7.51689946]
[1673386176130,4.77547991,1340.8,1340.6,7.61589946]
[1673386180836,4.77547991,1340.8,1340.6,0.15661946]
[1673386181073,4.77547991,1340.8,1340.6,7.51689946]
[1673386181325,4.77547991,1340.8,1340.6,7.61589946]
[1673386182478,4.77547991,1340.8,1340.6,10.39250767]
[1673386186253,3.82366065,1340.8,1340.6,10.39250767]
[1673386192315,3.82366065,1340.8,1340.6,11.50895719]
[1673386193058,3.82366065,1340.8,1340.6,18.96829719]
[1673386195093,3.82366065,1340.8,1340.6,17.84867094]
[1673386197478,3.82366065,1340.8,1340.6,10.38933094]
[1673386197703,4.7883767,1340.8,1340.6,10.38933094]
[1673386198149,4.7483767,1340.8,1340.6,10.38933094]
[1673386201366,3.78366065,1340.8,1340.6,10.38933094]
[1673386201774,3.78366065,1340.8,1340.6,17.84867094]
[1673386202983,3.78366065,1340.8,1340.6,2.93005094]
[1673386203288,3.78366065,1340.8,1340.6,7.51371273]
[1673386203669,3.78366065,1340.8,1340.6,10.38932094]
[1673386203880,4.9943767,1340.8,1340.6,10.38932094]
[1673386204035,4.9943767,1340.8,1340.6,2.93005094]
[1673386204246,4.9943767,1340.8,1340.6,0.05444273]
[1673386205652,4.9943767,1340.8,1340.6,7.51365273]
[1673386205869,4.9943767,1340.8,1340.6,7.61265273]
[1673386206401,6.12309831,1340.7,1340.6,0.15344273]
[1673386206609,6.12309831,1340.7,1340.6,0.05444273]
[1673386206975,8.62309831,1340.7,1340.6,0.05444273]
[1673386207344,8.66006615,1340.7,1340.6,0.05444273]
[1673386207866,16.11885615,1340.7,1340.6,0.05444273]
[1673386208236,8.66006615,1340.7,1340.6,0.05444273]
[1673386209721,16.11885615,1340.7,1340.6,0.05444273]
[1673386210493,10.33206615,1340.7,1340.6,0.05444273]
[1673386211664,32.70843615,1340.7,1340.6,0.05444273]
[1673386212649,32.70843615,1340.7,1340.6,2.73e-06]
[1673386212650,10.33206615,1340.7,1340.6,2.73e-06]
[1673386213118,13.11316027,1340.7,1340.6,2.73e-06]
[1673386213432,13.11316027,1340.7,1340.5,0.07004682]
[1673386213665,22.66867667,1340.6,1340.5,0.07004682]
[1673386218669,19.66867667,1340.6,1340.5,0.07004682]
[1673386220006,19.10897667,1340.6,1340.5,0.07004682]
[1673386221319,20.78097667,1340.6,1340.5,0.07004682]
[1673386221525,35.69965667,1340.6,1340.5,0.07004682]
[1673386221742,28.24031667,1340.6,1340.5,0.07004682]
[1673386222472,20.78097667,1340.6,1340.5,0.07004682]
[1673386222849,35.69965667,1340.6,1340.5,0.07004682]
[1673386223071,40.36875079,1340.6,1340.5,0.07004682]
[1673386223500,32.90941079,1340.6,1340.5,0.07004682]
[1673386223909,25.45007079,1340.6,1340.5,0.07004682]
[1673386224129,22.66897667,1340.6,1340.5,0.07004682]
[1673386225317,24.17321469,1340.6,1340.5,0.07004682]
[1673386225531,23.42109568,1340.6,1340.5,0.07004682]
[1673386225684,30.88043568,1340.6,1340.5,0.07004682]
[1673386227208,33.88043568,1340.6,1340.5,6.82e-06]
[1673386227422,34.44013568,1340.6,1340.5,6.82e-06]
[1673386227729,26.98079568,1340.6,1340.5,6.82e-06]
[1673386229383,26.22867667,1340.6,1340.5,6.82e-06]
[1673386230261,33.68801667,1340.6,1340.5,6.82e-06]
[1673386230656,22.89867667,1340.6,1340.5,6.82e-06]
[1673386231270,22.89867667,1340.6,1340.5,7.45990682]
[1673386231478,22.89867667,1340.6,1340.5,0.09900682]
[1673386231705,22.10897667,1340.6,1340.5,6.82e-06]
[1673386236340,20.79766064,1340.6,1340.5,6.82e-06]
[1673386236713,17.79766064,1340.6,1340.5,6.82e-06]
[1673386236928,17.79766064,1340.6,1340.5,7.45990682]